[Event "*** Titled Tuesday Blitz"]
[Site "Chess.com"]
[Date "2021.03.02"]
[Round "1"]
[White "eduardoperalta"]
[Black "NicholasTakano"]
[Result "1-0"]
[WhiteElo "2536"]
[BlackElo "2220"]
[TimeControl "180+1"]
[EndTime "10:07:06 PST"]
[Termination "eduardoperalta won by resignation"]

1. d4 {[%clk 0:03:00.4]} 1... Nf6 {[%clk 0:03:00]} 2. c4 {[%clk 0:02:57.4]} 2...
g6 {[%clk 0:03:00.4]} 3. Nc3 {[%clk 0:02:56.4]} 3... Bg7 {[%clk 0:03:00.6]} 4.
e4 {[%clk 0:02:56.3]} 4... d6 {[%clk 0:03:01.1]} 5. f3 {[%clk 0:02:55.4]} 5...
O-O {[%clk 0:03:00.9]} 6. Bg5 {[%clk 0:02:46.7]} 6... c5 {[%clk 0:03:00.3]} 7.
d5 {[%clk 0:02:43.1]} 7... a6 {[%clk 0:02:58.2]} 8. a4 {[%clk 0:02:41.8]} 8...
Qa5 {[%clk 0:02:56.8]} 9. Qd2 {[%clk 0:02:41.5]} 9... Bd7 {[%clk 0:02:52.4]} 10.
Ra3 {[%clk 0:02:40]} 10... Qc7 {[%clk 0:02:50.6]} 11. Nge2 {[%clk 0:02:38.3]}
11... e6 {[%clk 0:02:49.9]} 12. Nc1 {[%clk 0:02:32.3]} 12... exd5 {[%clk
0:02:49.8]} 13. cxd5 {[%clk 0:02:31.9]} 13... Re8 {[%clk 0:02:48.2]} 14. Be2
{[%clk 0:02:30.6]} 14... Bc8 {[%clk 0:02:33]} 15. O-O {[%clk 0:02:29]} 15...
Nbd7 {[%clk 0:02:33.2]} 16. Kh1 {[%clk 0:02:28.8]} 16... Ne5 {[%clk 0:02:33.2]}
17. a5 {[%clk 0:02:19.9]} 17... Bd7 {[%clk 0:02:29.2]} 18. f4 {[%clk 0:02:10.4]}
18... Neg4 {[%clk 0:02:28.9]} 19. h3 {[%clk 0:02:04.3]} 19... Nh6 {[%clk
0:02:27.7]} 20. f5 {[%clk 0:02:01.2]} 20... Nxf5 {[%clk 0:02:26]} 21. exf5
{[%clk 0:01:59.5]} 21... Bxf5 {[%clk 0:02:26.9]} 22. Bxf6 {[%clk 0:01:47]} 22...
Bxf6 {[%clk 0:02:25.5]} 23. g4 {[%clk 0:01:47]} 23... Bxc3 {[%clk 0:02:24.5]}
24. Rxc3 {[%clk 0:01:38.2]} 24... Be4+ {[%clk 0:02:24.7]} 25. Bf3 {[%clk
0:01:38.2]} 25... Qxa5 {[%clk 0:02:21.2]} 26. Qf2 {[%clk 0:01:36.3]} 26... Qb4
{[%clk 0:02:15]} 27. Rb3 {[%clk 0:01:22.2]} 27... Qd4 {[%clk 0:02:01.5]} 28.
Qxd4 {[%clk 0:01:19.1]} 28... cxd4 {[%clk 0:02:00.4]} 29. Bxe4 {[%clk
0:01:17.4]} 29... Rxe4 {[%clk 0:02:00]} 30. Rxb7 {[%clk 0:01:16.6]} 30... Rf8
{[%clk 0:02:00]} 31. Kg2 {[%clk 0:01:13.8]} 31... Re5 {[%clk 0:01:57.5]} 32. Nd3
{[%clk 0:01:11.1]} 32... Rxd5 {[%clk 0:01:56.7]} 33. Rc1 {[%clk 0:01:00.6]}
33... Re8 {[%clk 0:01:55.4]} 34. Rcc7 {[%clk 0:00:51]} 34... Rf8 {[%clk
0:01:45.1]} 35. h4 {[%clk 0:00:48.4]} 35... h5 {[%clk 0:01:43.7]} 36. g5 {[%clk
0:00:48.4]} 36... Rf5 {[%clk 0:01:43.5]} 37. Rd7 {[%clk 0:00:47.7]} 37... Re8
{[%clk 0:01:42.5]} 38. Rxd6 {[%clk 0:00:36.9]} 38... Re2+ {[%clk 0:01:41.4]} 39.
Kg1 {[%clk 0:00:36.6]} 39... Re3 {[%clk 0:01:40.9]} 40. Rxd4 {[%clk 0:00:29.1]}
40... Rg3+ {[%clk 0:01:40.2]} 41. Kh2 {[%clk 0:00:29.4]} 41... Rff3 {[%clk
0:01:37.7]} 42. Nf4 {[%clk 0:00:25.9]} 42... Rg4 {[%clk 0:01:36.7]} 43. Rbb4
{[%clk 0:00:24.2]} 43... Rxh4+ {[%clk 0:01:35.4]} 44. Kg2 {[%clk 0:00:24.2]}
44... Re3 {[%clk 0:01:32]} 45. Rb8+ {[%clk 0:00:23.8]} 45... Kg7 {[%clk
0:01:31.9]} 46. Ne6+ {[%clk 0:00:22]} 46... Rxe6 {[%clk 0:01:31.2]} 47. Rxh4
{[%clk 0:00:22.2]} 47... Re5 {[%clk 0:01:30.4]} 48. Rf4 {[%clk 0:00:22.4]} 48...
Rxg5+ {[%clk 0:01:30.5]} 49. Kf3 {[%clk 0:00:23.3]} 49... Rc5 {[%clk 0:01:28.6]}
50. Rb7 {[%clk 0:00:23.3]} 50... Rc2 {[%clk 0:01:24.7]} 51. Rfxf7+ {[%clk
0:00:22.3]} 51... Kh6 {[%clk 0:01:25.3]} 52. Rf6 {[%clk 0:00:22.1]} 52... Kg5
{[%clk 0:01:24.8]} 53. Rxa6 {[%clk 0:00:21.5]} 53... h4 {[%clk 0:01:24.1]} 54.
Ra5+ {[%clk 0:00:21.9]} 54... Kh6 {[%clk 0:01:23.8]} 55. b4 {[%clk 0:00:21.5]}
55... h3 {[%clk 0:01:23.8]} 56. Ra1 {[%clk 0:00:21.1]} 56... Kh5 {[%clk
0:01:22.4]} 57. Rh1 {[%clk 0:00:19.4]} 57... Rc3+ {[%clk 0:01:21.6]} 58. Kf4
{[%clk 0:00:18.7]} 58... g5+ {[%clk 0:01:21.5]} 59. Kf5 {[%clk 0:00:19]} 59...
Kh4 {[%clk 0:01:21.5]} 60. Rh7+ {[%clk 0:00:18.6]} 60... Kg3 {[%clk 0:01:21.4]}
61. R7xh3+ {[%clk 0:00:19.5]} 61... Kf2 {[%clk 0:01:21.1]} 62. Rxc3 {[%clk
0:00:20.4]} 1-0

[Event "*** Titled Tuesday Blitz"]
[Site "Chess.com"]
[Date "2021.03.02"]
[Round "1"]
[White "kleopl"]
[Black "Trovita84"]
[Result "1-0"]
[WhiteElo "2489"]
[BlackElo "2026"]
[TimeControl "180+1"]
[EndTime "10:07:06 PST"]
[Termination "kleopl won by resignation"]

1. c4 {[%clk 0:03:00.9]} 1... c6 {[%clk 0:02:51]} 2. Nf3 {[%clk 0:02:55.7]} 2...
Nf6 {[%clk 0:02:48.9]} 3. b3 {[%clk 0:02:53.1]} 3... g6 {[%clk 0:02:37.9]} 4.
Bb2 {[%clk 0:02:52.8]} 4... Bg7 {[%clk 0:02:37.6]} 5. e3 {[%clk 0:02:47.1]} 5...
d5 {[%clk 0:02:37.4]} 6. Be2 {[%clk 0:02:46.1]} 6... O-O {[%clk 0:02:36.8]} 7.
O-O {[%clk 0:02:45.9]} 7... Re8 {[%clk 0:02:35.1]} 8. d4 {[%clk 0:02:39.5]} 8...
Nbd7 {[%clk 0:02:27.7]} 9. Nbd2 {[%clk 0:02:37.5]} 9... Ne4 {[%clk 0:02:24.5]}
10. Nxe4 {[%clk 0:02:31.9]} 10... dxe4 {[%clk 0:02:24.4]} 11. Nd2 {[%clk
0:02:32.8]} 11... f5 {[%clk 0:02:23.6]} 12. Qc2 {[%clk 0:02:31.2]} 12... Nf6
{[%clk 0:02:22.6]} 13. Rfd1 {[%clk 0:02:28]} 13... Be6 {[%clk 0:02:22.3]} 14.
Rac1 {[%clk 0:02:27.1]} 14... Rc8 {[%clk 0:02:21.5]} 15. Nb1 {[%clk 0:02:26.7]}
15... Qc7 {[%clk 0:02:18.4]} 16. Qd2 {[%clk 0:02:25.9]} 16... Red8 {[%clk
0:02:15.6]} 17. Qb4 {[%clk 0:02:22.6]} 17... a5 {[%clk 0:02:11]} 18. Qe1 {[%clk
0:02:22.1]} 18... Qb6 {[%clk 0:02:07.7]} 19. Nc3 {[%clk 0:02:12.8]} 19... Bf7
{[%clk 0:01:57.4]} 20. Na4 {[%clk 0:02:12.4]} 20... Qc7 {[%clk 0:01:56.9]} 21.
c5 {[%clk 0:02:10]} 21... Nd5 {[%clk 0:01:53.4]} 22. Bc4 {[%clk 0:02:09.9]}
22... f4 {[%clk 0:01:49.6]} 23. Bxd5 {[%clk 0:02:07]} 23... Bxd5 {[%clk
0:01:49.3]} 24. Nb6 {[%clk 0:02:05.7]} 24... Rb8 {[%clk 0:01:48.4]} 25. Bc3
{[%clk 0:02:05.7]} 25... f3 {[%clk 0:01:40]} 26. g3 {[%clk 0:02:02.9]} 26... e6
{[%clk 0:01:36.8]} 27. Bxa5 {[%clk 0:01:55.8]} 27... Qf7 {[%clk 0:01:36.4]} 28.
Nxd5 {[%clk 0:01:54.1]} 28... Rxd5 {[%clk 0:01:36.4]} 29. a4 {[%clk 0:01:45.3]}
29... Rh5 {[%clk 0:01:33.3]} 30. Qf1 {[%clk 0:01:40.1]} 30... Qf5 {[%clk
0:01:31.9]} 31. Bc7 {[%clk 0:01:36.4]} 31... Rf8 {[%clk 0:01:30.3]} 32. Bd6
{[%clk 0:01:36.1]} 32... Rf7 {[%clk 0:01:29.7]} 33. b4 {[%clk 0:01:36.3]} 33...
Rh3 {[%clk 0:01:28.7]} 34. Kh1 {[%clk 0:01:29.8]} 34... Qh5 {[%clk 0:01:27.7]}
35. Qg1 {[%clk 0:01:29.6]} 35... Rf5 {[%clk 0:01:27.9]} 36. b5 {[%clk
0:01:27.4]} 36... cxb5 {[%clk 0:01:27.3]} 37. axb5 {[%clk 0:01:27.3]} 37... Qg4
{[%clk 0:01:27.8]} 38. c6 {[%clk 0:01:13.8]} 38... bxc6 {[%clk 0:01:27.8]} 39.
bxc6 {[%clk 0:01:14.3]} 39... Rfh5 {[%clk 0:01:28.4]} 40. c7 {[%clk 0:01:14.2]}
40... h6 {[%clk 0:01:10.7]} 41. c8=Q+ {[%clk 0:01:12.7]} 41... Kh7 {[%clk
0:01:11]} 42. Qc4 {[%clk 0:01:07.2]} 42... g5 {[%clk 0:00:14.7]} 43. Be5 {[%clk
0:00:55.5]} 43... Bxe5 {[%clk 0:00:13.4]} 44. dxe5 {[%clk 0:00:55.2]} 44... Kg6
{[%clk 0:00:14.3]} 45. Rd6 {[%clk 0:00:50.5]} 45... Rxh2+ {[%clk 0:00:10.2]} 46.
Qxh2 {[%clk 0:00:49.3]} 46... Rxh2+ {[%clk 0:00:11.1]} 47. Kxh2 {[%clk
0:00:49.5]} 47... Qh5+ {[%clk 0:00:12]} 48. Kg1 {[%clk 0:00:47.8]} 48... Qh3
{[%clk 0:00:10.2]} 49. Qxe6+ {[%clk 0:00:47.2]} 1-0

[Event "*** Titled Tuesday Blitz"]
[Site "Chess.com"]
[Date "2021.03.02"]
[Round "1"]
[White "ViktoriyaTarasova"]
[Black "hellokostya"]
[Result "0-1"]
[WhiteElo "2271"]
[BlackElo "2575"]
[TimeControl "180+1"]
[EndTime "10:07:09 PST"]
[Termination "hellokostya won by checkmate"]

1. d4 {[%clk 0:03:00.9]} 1... Nf6 {[%clk 0:02:58.1]} 2. c4 {[%clk 0:03:00.5]}
2... g6 {[%clk 0:02:58.4]} 3. Nc3 {[%clk 0:02:59.3]} 3... Bg7 {[%clk 0:02:59]}
4. e4 {[%clk 0:02:58.5]} 4... O-O {[%clk 0:02:59.7]} 5. h3 {[%clk 0:02:57.6]}
5... d6 {[%clk 0:03:00.2]} 6. Be3 {[%clk 0:02:56.9]} 6... Na6 {[%clk 0:03:00.8]}
7. Nf3 {[%clk 0:02:54.9]} 7... c6 {[%clk 0:03:00.1]} 8. Be2 {[%clk 0:02:53.1]}
8... e5 {[%clk 0:02:58.2]} 9. d5 {[%clk 0:02:52.8]} 9... Nh5 {[%clk 0:02:58.3]}
10. g3 {[%clk 0:02:23.8]} 10... cxd5 {[%clk 0:02:56.4]} 11. cxd5 {[%clk
0:02:23.1]} 11... f5 {[%clk 0:02:57]} 12. exf5 {[%clk 0:01:56.9]} 12... gxf5
{[%clk 0:02:57.9]} 13. Bg5 {[%clk 0:01:34.9]} 13... Nf6 {[%clk 0:02:57]} 14. Qd2
{[%clk 0:01:22]} 14... Bd7 {[%clk 0:02:51.6]} 15. Nh4 {[%clk 0:01:12.7]} 15...
Rc8 {[%clk 0:02:45.9]} 16. g4 {[%clk 0:01:03.5]} 16... Qb6 {[%clk 0:02:08.8]}
17. Nxf5 {[%clk 0:00:57.8]} 17... Bxf5 {[%clk 0:02:02.1]} 18. gxf5 {[%clk
0:00:57.8]} 18... Rxc3 {[%clk 0:01:56.7]} 19. bxc3 {[%clk 0:00:49.8]} 19... Ne4
{[%clk 0:01:56.4]} 20. Qe3 {[%clk 0:00:46.8]} 20... Qxe3 {[%clk 0:01:34.9]} 21.
Bxe3 {[%clk 0:00:46.2]} 21... Nxc3 {[%clk 0:01:35.8]} 22. Bxa6 {[%clk
0:00:40.9]} 22... bxa6 {[%clk 0:01:35.4]} 23. Rc1 {[%clk 0:00:41.5]} 23... Nxd5
{[%clk 0:01:33.8]} 24. Bxa7 {[%clk 0:00:41]} 24... Nf4 {[%clk 0:01:27.5]} 25.
Rc7 {[%clk 0:00:35.8]} 25... Rxf5 {[%clk 0:01:25.1]} 26. Kd2 {[%clk 0:00:33.9]}
26... Ne6 {[%clk 0:01:14.4]} 27. Rc8+ {[%clk 0:00:32.2]} 27... Kf7 {[%clk
0:01:13.8]} 28. Be3 {[%clk 0:00:30.5]} 28... d5 {[%clk 0:01:12.2]} 29. Ke2
{[%clk 0:00:27.4]} 29... d4 {[%clk 0:01:11.6]} 30. Bd2 {[%clk 0:00:27.6]} 30...
e4 {[%clk 0:01:09.5]} 31. Rb1 {[%clk 0:00:26.9]} 31... d3+ {[%clk 0:01:08.1]}
32. Kf1 {[%clk 0:00:26.9]} 32... Bd4 {[%clk 0:01:06.8]} 33. Rb7+ {[%clk
0:00:26.8]} 33... Kf6 {[%clk 0:01:04.3]} 34. Be1 {[%clk 0:00:20.3]} 34... e3
{[%clk 0:01:02.6]} 35. f3 {[%clk 0:00:12.4]} 35... d2 {[%clk 0:00:56.6]} 36.
Bh4+ {[%clk 0:00:11.8]} 36... Ke5 {[%clk 0:00:53.9]} 37. Bg3+ {[%clk 0:00:10.6]}
37... Kf6 {[%clk 0:00:37.4]} 38. Ke2 {[%clk 0:00:10]} 38... Rxf3 {[%clk
0:00:33]} 39. Bh4+ {[%clk 0:00:09.2]} 39... Ke5 {[%clk 0:00:31.5]} 40. Re8
{[%clk 0:00:05.1]} 40... Rxh3 {[%clk 0:00:29.7]} 41. Rbe7 {[%clk 0:00:04.1]}
41... Rh2+ {[%clk 0:00:28.9]} 42. Kd1 {[%clk 0:00:03.1]} 42... Rh1+ {[%clk
0:00:29.3]} 43. Kc2 {[%clk 0:00:03.6]} 43... d1=Q# {[%clk 0:00:29.9]} 0-1

[Event "*** Titled Tuesday Blitz"]
[Site "Chess.com"]
[Date "2021.03.02"]
[Round "1"]
[White "kubal123"]
[Black "Bayernbk"]
[Result "0-1"]
[WhiteElo "2207"]
[BlackElo "2533"]
[TimeControl "180+1"]
[EndTime "10:07:11 PST"]
[Termination "Bayernbk won by resignation"]

1. d4 {[%clk 0:02:57.9]} 1... Nf6 {[%clk 0:02:57.7]} 2. c4 {[%clk 0:02:56.7]}
2... e6 {[%clk 0:02:58]} 3. Nf3 {[%clk 0:02:52.1]} 3... d5 {[%clk 0:02:58.5]} 4.
Nc3 {[%clk 0:02:50.2]} 4... c5 {[%clk 0:02:52.5]} 5. cxd5 {[%clk 0:02:49.7]}
5... Nxd5 {[%clk 0:02:51.5]} 6. e4 {[%clk 0:02:48.5]} 6... Nxc3 {[%clk
0:02:52.1]} 7. bxc3 {[%clk 0:02:49.4]} 7... cxd4 {[%clk 0:02:52.8]} 8. cxd4
{[%clk 0:02:50.3]} 8... Bb4+ {[%clk 0:02:53.4]} 9. Bd2 {[%clk 0:02:50.9]} 9...
Bxd2+ {[%clk 0:02:54.2]} 10. Qxd2 {[%clk 0:02:51.8]} 10... O-O {[%clk
0:02:54.9]} 11. Bc4 {[%clk 0:02:51.9]} 11... Nc6 {[%clk 0:02:54.8]} 12. O-O
{[%clk 0:02:51.8]} 12... b6 {[%clk 0:02:55.5]} 13. Rad1 {[%clk 0:02:49.4]} 13...
Bb7 {[%clk 0:02:55.9]} 14. Rfe1 {[%clk 0:02:49.5]} 14... Rc8 {[%clk 0:02:56.6]}
15. Bb3 {[%clk 0:02:49.7]} 15... Qe7 {[%clk 0:02:54.8]} 16. d5 {[%clk
0:02:48.8]} 16... Na5 {[%clk 0:02:52.6]} 17. d6 {[%clk 0:02:39.3]} 17... Qf6
{[%clk 0:02:23.5]} 18. Qd4 {[%clk 0:02:24]} 18... Rfd8 {[%clk 0:01:59.9]} 19. e5
{[%clk 0:01:53.8]} 19... Qg6 {[%clk 0:01:28.9]} 20. Nh4 {[%clk 0:01:53.8]} 20...
Qg5 {[%clk 0:01:21.7]} 21. Re3 {[%clk 0:01:44.3]} 21... Rc5 {[%clk 0:01:02.3]}
22. Rde1 {[%clk 0:01:04.8]} 22... Nxb3 {[%clk 0:00:38.4]} 23. axb3 {[%clk
0:01:05.7]} 23... Rd5 {[%clk 0:00:38.6]} 24. Qa4 {[%clk 0:00:57.2]} 24... Ra5
{[%clk 0:00:26.9]} 25. Qb4 {[%clk 0:00:56.5]} 25... Bc6 {[%clk 0:00:11.1]} 26.
Rg3 {[%clk 0:00:50.2]} 26... Qh6 {[%clk 0:00:09.2]} 27. Qg4 {[%clk 0:00:47.6]}
27... Rxe5 {[%clk 0:00:06.4]} 28. Qxg7+ {[%clk 0:00:41.9]} 28... Qxg7 {[%clk
0:00:05.9]} 29. Rxg7+ {[%clk 0:00:42]} 29... Kxg7 {[%clk 0:00:06.6]} 30. Rxe5
{[%clk 0:00:42.8]} 30... Rxd6 {[%clk 0:00:06.8]} 31. h3 {[%clk 0:00:41.3]} 31...
Rd1+ {[%clk 0:00:04.5]} 32. Kh2 {[%clk 0:00:41.6]} 32... Rd3 {[%clk 0:00:05.2]}
33. Rg5+ {[%clk 0:00:39.9]} 33... Kf6 {[%clk 0:00:05.1]} 34. Rh5 {[%clk
0:00:39.1]} 34... Rxb3 {[%clk 0:00:05.7]} 35. Rxh7 {[%clk 0:00:39]} 35... a5
{[%clk 0:00:06.3]} 36. Rh6+ {[%clk 0:00:37.4]} 36... Kg7 {[%clk 0:00:06.2]} 37.
Rh5 {[%clk 0:00:35.5]} 37... a4 {[%clk 0:00:06.6]} 38. Rg5+ {[%clk 0:00:30.9]}
38... Kf6 {[%clk 0:00:07]} 39. Rg4 {[%clk 0:00:31.3]} 39... a3 {[%clk
0:00:07.7]} 40. Rc4 {[%clk 0:00:29.5]} 40... a2 {[%clk 0:00:07.9]} 41. Rc1
{[%clk 0:00:29.3]} 41... Rb1 {[%clk 0:00:08.2]} 42. Rxc6 {[%clk 0:00:29.7]}
42... a1=Q {[%clk 0:00:08.6]} 0-1

[Event "*** Titled Tuesday Blitz"]
[Site "Chess.com"]
[Date "2021.03.02"]
[Round "1"]
[White "Julianos82"]
[Black "jacky72"]
[Result "0-1"]
[WhiteElo "2362"]
[BlackElo "2686"]
[TimeControl "180+1"]
[EndTime "10:07:12 PST"]
[Termination "jacky72 won by resignation"]

1. d4 {[%clk 0:03:00.9]} 1... Nf6 {[%clk 0:02:59.1]} 2. Nf3 {[%clk 0:03:00.7]}
2... g6 {[%clk 0:02:59.3]} 3. c4 {[%clk 0:03:00.5]} 3... Bg7 {[%clk 0:02:59.9]}
4. Nc3 {[%clk 0:03:01.1]} 4... O-O {[%clk 0:03:00.8]} 5. e4 {[%clk 0:03:00.8]}
5... d6 {[%clk 0:03:01.7]} 6. Be2 {[%clk 0:03:01]} 6... Na6 {[%clk 0:03:02.3]}
7. O-O {[%clk 0:02:59.3]} 7... e5 {[%clk 0:03:02.8]} 8. Be3 {[%clk 0:02:58.2]}
8... c6 {[%clk 0:03:03]} 9. d5 {[%clk 0:02:56.3]} 9... Ng4 {[%clk 0:03:02.6]}
10. Bg5 {[%clk 0:02:54.2]} 10... f6 {[%clk 0:03:02.9]} 11. Bh4 {[%clk
0:02:54.2]} 11... c5 {[%clk 0:03:03.3]} 12. Ne1 {[%clk 0:02:43.1]} 12... h5
{[%clk 0:03:02.9]} 13. h3 {[%clk 0:02:38.8]} 13... Nh6 {[%clk 0:03:02.1]} 14.
Nd3 {[%clk 0:02:37]} 14... g5 {[%clk 0:02:56.5]} 15. Bg3 {[%clk 0:02:36.6]}
15... h4 {[%clk 0:02:57]} 16. Bh2 {[%clk 0:02:35.8]} 16... f5 {[%clk 0:02:57.7]}
17. exf5 {[%clk 0:02:15.7]} 17... Nxf5 {[%clk 0:02:52.8]} 18. Bg4 {[%clk
0:02:11.2]} 18... Nd4 {[%clk 0:02:52.7]} 19. Ne4 {[%clk 0:02:05.4]} 19... Bf5
{[%clk 0:02:39.3]} 20. Bxf5 {[%clk 0:02:03]} 20... Rxf5 {[%clk 0:02:37.2]} 21.
a3 {[%clk 0:01:43.7]} 21... Rb8 {[%clk 0:02:36]} 22. a4 {[%clk 0:01:29.3]} 22...
Qe7 {[%clk 0:02:23.4]} 23. f3 {[%clk 0:01:24.1]} 23... Bh6 {[%clk 0:02:10]} 24.
a5 {[%clk 0:01:20.7]} 24... Rf7 {[%clk 0:02:05.7]} 25. Rb1 {[%clk 0:01:17.2]}
25... Nb4 {[%clk 0:02:00.7]} 26. Nxb4 {[%clk 0:01:15.1]} 26... cxb4 {[%clk
0:02:00.7]} 27. Qd3 {[%clk 0:01:14.7]} 27... b3 {[%clk 0:01:54.7]} 28. Rbe1
{[%clk 0:01:09.3]} 28... Rc8 {[%clk 0:01:51.5]} 29. Re2 {[%clk 0:01:05.3]} 29...
Nxe2+ {[%clk 0:01:44.4]} 30. Qxe2 {[%clk 0:01:06.2]} 30... Qc7 {[%clk
0:01:38.2]} 31. c5 {[%clk 0:01:04.9]} 31... dxc5 {[%clk 0:01:35.4]} 32. d6
{[%clk 0:01:05.8]} 32... Qc6 {[%clk 0:01:31.7]} 33. Qc4 {[%clk 0:01:05]} 33...
Kf8 {[%clk 0:01:20.1]} 34. Rd1 {[%clk 0:01:04.2]} 34... Re8 {[%clk 0:01:15.3]}
35. Qxb3 {[%clk 0:00:57.9]} 35... c4 {[%clk 0:01:15.5]} 36. Qb4 {[%clk
0:00:55.4]} 36... Kg8 {[%clk 0:01:11.6]} 37. Rc1 {[%clk 0:00:53.9]} 37... b5
{[%clk 0:01:10.3]} 38. b3 {[%clk 0:00:51.8]} 38... Rc8 {[%clk 0:01:08.7]} 39.
bxc4 {[%clk 0:00:51.4]} 39... bxc4 {[%clk 0:01:09.6]} 40. Rc2 {[%clk 0:00:46.7]}
40... Bf8 {[%clk 0:01:07.3]} 41. Kf1 {[%clk 0:00:45.3]} 41... Qd5 {[%clk
0:01:04.5]} 42. Rd2 {[%clk 0:00:44.5]} 42... Qxe4 {[%clk 0:00:58.2]} 43. d7
{[%clk 0:00:39.4]} 43... Rd8 {[%clk 0:00:57.1]} 44. Qb5 {[%clk 0:00:26.1]} 44...
c3 {[%clk 0:00:52.2]} 45. Re2 {[%clk 0:00:23.1]} 45... Qg6 {[%clk 0:00:42.9]}
46. Bxe5 {[%clk 0:00:21.9]} 46... c2 {[%clk 0:00:42.3]} 47. Qc4 {[%clk
0:00:21.1]} 47... Rxd7 {[%clk 0:00:37.5]} 48. Rxc2 {[%clk 0:00:21]} 48... Qd3+
{[%clk 0:00:30.8]} 0-1

[Event "*** Titled Tuesday Blitz"]
[Site "Chess.com"]
[Date "2021.03.02"]
[Round "1"]
[White "AryanTari"]
[Black "Mihnea2017"]
[Result "1-0"]
[WhiteElo "2903"]
[BlackElo "2448"]
[TimeControl "180+1"]
[EndTime "10:07:13 PST"]
[Termination "AryanTari won by resignation"]

1. b3 {[%clk 0:02:57.3]} 1... e5 {[%clk 0:02:59.5]} 2. Bb2 {[%clk 0:02:54]} 2...
Nc6 {[%clk 0:02:59.7]} 3. e3 {[%clk 0:02:53.2]} 3... Nf6 {[%clk 0:02:59.8]} 4.
Bb5 {[%clk 0:02:42.7]} 4... Bd6 {[%clk 0:02:59.5]} 5. Na3 {[%clk 0:02:27.7]}
5... e4 {[%clk 0:02:59.2]} 6. Nc4 {[%clk 0:02:15.5]} 6... Bc5 {[%clk 0:02:59.3]}
7. Bxc6 {[%clk 0:02:09.9]} 7... bxc6 {[%clk 0:02:53.2]} 8. Ne2 {[%clk 0:02:07]}
8... d5 {[%clk 0:02:36.7]} 9. Ne5 {[%clk 0:01:56.7]} 9... Bd7 {[%clk 0:02:27.2]}
10. O-O {[%clk 0:01:54.1]} 10... O-O {[%clk 0:02:27.3]} 11. Ng3 {[%clk
0:01:35.2]} 11... Bd6 {[%clk 0:02:20.7]} 12. f4 {[%clk 0:01:33.5]} 12... exf3
{[%clk 0:02:19.9]} 13. Qxf3 {[%clk 0:01:33.4]} 13... Qe8 {[%clk 0:01:51.9]} 14.
Nxd7 {[%clk 0:01:28]} 14... Nxd7 {[%clk 0:01:51.7]} 15. Nf5 {[%clk 0:01:23.4]}
15... Be5 {[%clk 0:01:49.8]} 16. d4 {[%clk 0:01:20]} 16... Bf6 {[%clk 0:01:47]}
17. Ba3 {[%clk 0:01:20.3]} 17... c5 {[%clk 0:01:41.3]} 18. Qxd5 {[%clk
0:01:20.3]} 18... g6 {[%clk 0:01:31.5]} 19. Nh6+ {[%clk 0:01:12.2]} 19... Kg7
{[%clk 0:01:31.8]} 20. Ng4 {[%clk 0:01:12]} 20... h5 {[%clk 0:01:19.4]} 21. Nxf6
{[%clk 0:00:58]} 21... Qxe3+ {[%clk 0:01:18.5]} 22. Kh1 {[%clk 0:00:57.3]} 22...
Nxf6 {[%clk 0:01:18.7]} 23. Qxc5 {[%clk 0:00:52.2]} 23... Ng4 {[%clk 0:01:10.8]}
24. d5 {[%clk 0:00:46.5]} 24... Rfe8 {[%clk 0:01:04.1]} 25. h3 {[%clk
0:00:42.2]} 25... Qg3 {[%clk 0:00:23.1]} 26. Qd4+ {[%clk 0:00:26.7]} 26... Kg8
{[%clk 0:00:10.9]} 27. Qf4 {[%clk 0:00:26.6]} 27... Qxf4 {[%clk 0:00:09.2]} 28.
Rxf4 {[%clk 0:00:27.5]} 28... Ne3 {[%clk 0:00:10]} 29. Bc5 {[%clk 0:00:13.6]}
29... Nxd5 {[%clk 0:00:09.3]} 30. Rd4 {[%clk 0:00:14]} 30... Nb6 {[%clk
0:00:08.7]} 31. a4 {[%clk 0:00:13.4]} 31... Rad8 {[%clk 0:00:08.3]} 32. Rad1
{[%clk 0:00:13]} 32... Rxd4 {[%clk 0:00:08.3]} 33. Rxd4 {[%clk 0:00:13.9]} 33...
Re2 {[%clk 0:00:08.6]} 34. a5 {[%clk 0:00:14]} 34... Rxc2 {[%clk 0:00:07.7]} 35.
axb6 {[%clk 0:00:13.9]} 35... Rxc5 {[%clk 0:00:07.8]} 36. Rd8+ {[%clk
0:00:13.8]} 36... Kg7 {[%clk 0:00:07.4]} 37. bxa7 {[%clk 0:00:14.7]} 1-0

[Event "*** Titled Tuesday Blitz"]
[Site "Chess.com"]
[Date "2021.03.02"]
[Round "1"]
[White "QuintilianoR"]
[Black "A-S-00"]
[Result "1-0"]
[WhiteElo "2724"]
[BlackElo "2391"]
[TimeControl "180+1"]
[EndTime "10:07:14 PST"]
[Termination "QuintilianoR won by resignation"]

1. d4 {[%clk 0:03:00.9]} 1... Nf6 {[%clk 0:02:59.2]} 2. c4 {[%clk 0:03:01.3]}
2... g6 {[%clk 0:02:59.4]} 3. Nf3 {[%clk 0:03:01.4]} 3... Bg7 {[%clk 0:03:00.3]}
4. Nc3 {[%clk 0:03:01.7]} 4... d6 {[%clk 0:03:00.3]} 5. e4 {[%clk 0:03:00.9]}
5... O-O {[%clk 0:03:00.9]} 6. Be2 {[%clk 0:03:01.3]} 6... Nbd7 {[%clk
0:03:00.6]} 7. O-O {[%clk 0:03:01.1]} 7... e5 {[%clk 0:03:00.5]} 8. Be3 {[%clk
0:03:00.2]} 8... Re8 {[%clk 0:02:58]} 9. d5 {[%clk 0:02:59.7]} 9... a5 {[%clk
0:02:57.6]} 10. Nd2 {[%clk 0:02:53.1]} 10... h6 {[%clk 0:02:33.5]} 11. a3 {[%clk
0:02:49.7]} 11... Kh7 {[%clk 0:02:19]} 12. b4 {[%clk 0:02:44.8]} 12... b6 {[%clk
0:02:18.5]} 13. Qc2 {[%clk 0:02:40.1]} 13... Nf8 {[%clk 0:01:59]} 14. c5 {[%clk
0:02:34.2]} 14... bxc5 {[%clk 0:01:55.3]} 15. bxc5 {[%clk 0:02:33.8]} 15... Ng4
{[%clk 0:01:50.6]} 16. Bxg4 {[%clk 0:02:33.2]} 16... Bxg4 {[%clk 0:01:51.5]} 17.
Nc4 {[%clk 0:02:33.5]} 17... dxc5 {[%clk 0:01:40.9]} 18. Bxc5 {[%clk 0:02:28.2]}
18... Bc8 {[%clk 0:01:34.9]} 19. Rfd1 {[%clk 0:02:25.9]} 19... f5 {[%clk
0:01:34.2]} 20. f3 {[%clk 0:02:25.3]} 20... Nd7 {[%clk 0:01:31.1]} 21. Bf2
{[%clk 0:02:22]} 21... Nf6 {[%clk 0:01:20.4]} 22. d6 {[%clk 0:02:13.7]} 22...
Ba6 {[%clk 0:01:08.1]} 23. Nd5 {[%clk 0:00:47.3]} 23... Nxd5 {[%clk 0:01:02.5]}
24. Rxd5 {[%clk 0:00:46.3]} 24... Bxc4 {[%clk 0:00:39.7]} 25. Qxc4 {[%clk
0:00:46]} 25... cxd6 {[%clk 0:00:40.3]} 26. Rad1 {[%clk 0:00:46.5]} 26... Bf8
{[%clk 0:00:29.9]} 27. Qd3 {[%clk 0:00:41.4]} 27... Qf6 {[%clk 0:00:28.5]} 28.
a4 {[%clk 0:00:38]} 28... Rec8 {[%clk 0:00:26.7]} 29. Bb6 {[%clk 0:00:35.4]}
29... f4 {[%clk 0:00:25.4]} 30. Bxa5 {[%clk 0:00:32.6]} 30... Ra7 {[%clk
0:00:18.5]} 31. Bb4 {[%clk 0:00:30.3]} 31... Rc6 {[%clk 0:00:16.5]} 32. a5
{[%clk 0:00:29.8]} 32... Rb7 {[%clk 0:00:16.1]} 33. Ba3 {[%clk 0:00:27]} 33...
Rd7 {[%clk 0:00:14.7]} 34. Qb5 {[%clk 0:00:25.5]} 34... Rcc7 {[%clk 0:00:12.8]}
35. a6 {[%clk 0:00:25.7]} 35... Ra7 {[%clk 0:00:12.8]} 36. h3 {[%clk 0:00:23.7]}
36... Qe7 {[%clk 0:00:12.9]} 37. Qb6 {[%clk 0:00:23.1]} 37... Qe8 {[%clk
0:00:12.8]} 38. Bxd6 {[%clk 0:00:21.9]} 38... Bxd6 {[%clk 0:00:13]} 39. Rxd6
{[%clk 0:00:22.8]} 39... Rxd6 {[%clk 0:00:10.8]} 40. Qxa7+ {[%clk 0:00:22.2]}
1-0